Workbook

Sheet Feuil1
A1: DATE | B1: MONTANT | C1: MOIS/MOIS | D1: DEBUT | E1: MOYENNE
A2: 05-13 | B2: 18000 | E2: =AVERAGE($B$2:$B$13) -> 20827.83333
A3: 2016-03-01 | B3: 21250 | C3: =B3-B2 -> 3250 | D3: =B3-$B$2 -> 3250 | E3: =$E$2 -> 20827.83333
A4: 2016-04-01 | B4: 20500 | C4: =B4-B3 -> -750 | D4: =B4-$B$2 -> 2500 | E4: =$E$2 -> 20827.83333
A5: 2016-05-01 | B5: 21005 | C5: =B5-B4 -> 505 | D5: =B5-$B$2 -> 3005 | E5: 20827.83333
A6: 2016-06-01 | B6: 21009 | C6: =B6-B5 -> 4 | D6: =B6-$B$2 -> 3009 | E6: 20827.83333
A7: 2016-07-01 | B7: 19500 | C7: =B7-B6 -> -1509 | D7: =B7-$B$2 -> 1500 | E7: 20827.83333
A8: 2016-08-01 | B8: 23000 | C8: =B8-B7 -> 3500 | D8: =B8-$B$2 -> 5000 | E8: 20827.83333
A9: 2016-09-01 | B9: 20500 | C9: =B9-B8 -> -2500 | D9: =B9-$B$2 -> 2500 | E9: 20827.83333
A10: 2016-10-01 | B10: 21450 | C10: =B10-B9 -> 950 | D10: =B10-$B$2 -> 3450 | E10: 20827.83333
A11: 2016-11-01 | B11: 20600 | C11: =B11-B10 -> -850 | D11: =B11-$B$2 -> 2600 | E11: 20827.83333
A12: 2016-12-01 | B12: 21220 | C12: =B12-B11 -> 620 | D12: =B12-$B$2 -> 3220 | E12: 20827.83333
A13: 2017-01-01 | B13: 21900 | C13: =B13-B12 -> 680 | D13: =B13-$B$2 -> 3900 | E13: 20827.83333
A17: Contraintes : | B17: La ligne 2 (05-13) ne doit pas disparaitre
B18: Calcul sur 12 mois glissants dont le mois d'origine (ligne 2)
A19: Mon souhait : | B19: En février 2017, je crée une ligne avec les nouvelles valeurs, puis comment supprimer (ou remplacer, ou effacer….) la ligne 3 (pour garder mes 12 mois glissants) et faire en sorte que le graphique se mette
B20: à jour automatiquement. Dans mes nombreux essais, les coordonnées passent de a13 et b13, à a12 et b12.
A22: Merci d'avance

Sheet Feuil2

Sheet Feuil3
